bitfinex/quotes_ETHUSD_20251015
["timestamp","ask_amount","ask_price","bid_price","bid_amount"]
[1760556355086,0.4624,4011.7,4011.5,2.49277547]
[1760556355287,0.4624,4011.6,4011.5,2.49277547]
[1760556356487,0.125,4011.8,4011.6,2.49271476]
[1760556356688,0.4624,4011.7,4011.6,2.49271476]
[1760556358393,0.125,4011.8,4011.7,2.49270882]
[1760556358938,0.5599,4011.8,4011.6,2.49276458]
[1760556359296,0.5599,4011.8,4011.2,0.6336]
[1760556359615,0.5599,4011.8,4011.6,2.49272367]
[1760556359817,0.4349,4011.7,4011.6,2.49272367]
[1760556360227,0.125,4011.8,4011.6,2.49272367]
[1760556360228,0.125,4011.8,4011.7,2.49270882]
[1760556361028,0.125,4011.8,4011.2,0.6336]
[1760556361029,0.125,4011.8,4011.6,2.49272333]
[1760556361333,0.5599,4011.8,4011.6,2.49272333]
[1760556361733,0.5599,4011.8,4011.7,2.49270882]
[1760556362035,0.5599,4011.8,4011.5,2.4928331]
[1760556362241,0.125,4011.8,4011.6,2.49276895]
[1760556362433,0.125,4011.8,4011.7,2.49270882]
[1760556362610,0.5599,4011.8,4011.7,2.49270882]
[1760556362817,0.5599,4011.8,4011.6,2.4927519]
[1760556363024,0.4349,4011.7,4011.6,2.4927519]
[1760556363524,0.4349,4011.7,4011.0,2.49310945]
[1760556363525,0.4349,4011.7,4009.8,0.2305]
[1760556363723,0.4349,4011.7,4010.1,0.002]
[1760556363933,2.49318859,4011.0,4010.2,2.49360493]
[1760556364101,3.16302404,4010.9,4010.1,2.4956948]
[1760556364433,2.92817338,4010.8,4010.1,2.49568563]
[1760556364638,0.4349,4010.8,4010.1,0.002]
[1760556364832,2.49333091,4010.7,4010.1,0.002]
[1760556365002,0.4349,4010.8,4010.1,2.49569262]
[1760556365200,0.4349,4010.7,4010.2,2.4935939]
[1760556365404,0.4349,4010.6,4010.3,2.49357056]
[1760556365840,0.4349,4010.6,4010.4,2.49350571]
[1760556366138,1.728,4011.3,4010.7,2.49327991]
[1760556366303,2.1629,4011.4,4010.2,0.6336]
[1760556366504,0.001,4011.8,4010.7,2.49328891]
[1760556366505,0.4349,4011.3,4010.7,2.49328891]
[1760556366744,0.4349,4011.3,4010.8,2.49323493]
[1760556366957,0.001,4011.8,4010.9,0.02493206]
[1760556367107,0.001,4011.8,4011.7,2.49270882]
[1760556367947,0.001,4011.8,4011.3,0.6336]
[1760556368147,0.4349,4011.7,4010.9,2.60639134]
[1760556368302,0.001,4011.8,4011.0,0.6336]
[1760556368531,0.001,4011.8,4011.7,2.49270882]
[1760556368933,0.001,4011.8,4011.0,0.8641]
[1760556369137,0.001,4011.8,4011.6,2.49276641]
[1760556369539,0.4349,4011.7,4010.9,0.1132]
[1760556369851,0.4349,4011.7,4011.5,2.4928331]
[1760556370052,0.4349,4011.7,4011.6,2.49277096]
[1760556370248,0.001,4011.8,4011.7,2.49270882]
[1760556372033,0.001,4011.8,4011.6,2.49275037]
[1760556372034,0.4359,4011.8,4011.6,2.49275037]
[1760556372285,0.4349,4011.7,4011.6,2.49275037]
[1760556372643,0.4349,4011.7,4010.9,0.1132]
[1760556372644,0.4349,4011.7,4011.4,2.49289524]
[1760556372847,0.4349,4011.6,4011.3,2.49292185]
[1760556373147,0.4349,4011.5,4011.3,2.49292185]
[1760556373342,0.4349,4011.4,4011.3,2.49292185]
[1760556373549,0.5589,4011.4,4010.7,0.124]
[1760556373943,0.3589,4010.8,4010.5,2.49339928]
[1760556374236,0.7938,4010.8,4010.5,2.49339928]
[1760556374664,0.4349,4010.7,4010.1,0.002]
[1760556374978,0.124,4010.3,4010.1,0.002]
[1760556375332,0.5589,4010.3,4010.1,0.002]
[1760556376374,0.4349,4010.2,4010.1,0.002]
[1760556377274,0.124,4010.3,4010.1,0.002]
[1760556377644,0.5589,4010.3,4010.1,0.002]
[1760556378482,0.4349,4010.2,4010.1,0.002]
[1760556379179,0.4349,4010.2,4010.1,2.49570339]
[1760556379665,0.124,4010.3,4010.2,2.49364121]
[1760556380881,1.728,4011.2,4010.6,2.49336597]
[1760556381080,0.001,4011.7,4010.1,0.002]
[1760556381081,0.124,4011.1,4010.2,0.6336]
[1760556381283,0.4295,4011.0,4010.4,0.124]
[1760556381472,0.4295,4011.0,4010.1,0.002]
[1760556381473,0.2177,4010.9,4010.1,0.002]
[1760556381783,2.49334588,4010.7,4010.1,0.002]
[1760556382088,0.2177,4010.9,4010.1,0.002]
[1760556382089,0.124,4010.2,4010.1,0.002]
[1760556382778,0.5535,4010.2,4010.1,0.002]
[1760556384073,0.124,4010.2,4010.1,0.002]
[1760556384270,0.124,4010.3,4010.2,2.49361968]
[1760556384468,0.124,4010.3,4010.1,2.49565302]
[1760556384669,0.124,4010.3,4010.2,2.49364121]
[1760556385070,0.124,4010.3,4010.1,2.49568564]
[1760556385473,0.124,4010.3,4010.2,2.49364121]
[1760556388188,0.2177,4010.9,4010.4,2.49347367]
[1760556388391,2.49301954,4011.2,4010.5,2.49344661]
[1760556388810,10.001,4011.8,4010.2,2.49364121]
[1760556388811,30.0,4011.5,4010.2,2.49364121]
[1760556388975,0.124,4011.3,4010.6,0.124]
[1760556389283,0.124,4011.3,4011.0,2.49309247]
[1760556389483,0.124,4011.3,4010.8,2.49325692]
[1760556389688,0.124,4011.3,4010.6,0.5627]
[1760556390017,0.124,4011.3,4010.9,2.49319089]
[1760556390390,0.124,4011.3,4010.6,0.124]
[1760556390578,0.124,4010.9,4010.6,2.49338893]
[1760556390910,0.124,4010.9,4010.2,0.124]
[1760556391073,0.3417,4010.9,4010.5,2.49341524]
[1760556391277,0.5701,4010.9,4010.2,0.124]
[1760556391479,0.4461,4010.9,4010.2,2.49364121]
[1760556391703,0.124,4010.6,4010.2,2.49364121]
[1760556392207,0.124,4010.6,4010.2,2.49359593]
[1760556393112,0.124,4010.6,4010.1,0.002]
[1760556393308,0.3524,4010.6,4010.1,2.49568078]
[1760556393702,0.124,4010.6,4010.2,2.49363189]
[1760556394406,0.124,4010.6,4010.1,2.49568925]
[1760556394710,0.124,4010.6,4010.2,2.49363395]
[1760556394887,0.124,4010.6,4010.4,2.49350956]
[1760556395288,0.124,4010.6,4010.5,2.49345468]
[1760556395806,0.124,4010.6,4010.2,2.93228044]
[1760556396002,0.124,4010.6,4010.2,0.4387]
[1760556396202,0.124,4010.6,4010.3,2.49353327]
[1760556396402,0.124,4010.6,4010.4,2.49351401]
[1760556397210,0.124,4010.6,4010.3,2.49353802]
[1760556399013,0.124,4010.6,4010.5,2.49345468]
[1760556399216,0.124,4010.8,4010.7,2.49333034]
[1760556400104,0.124,4010.8,4010.4,2.93221669]
[1760556400421,0.124,4010.8,4010.6,2.49337118]
[1760556400720,0.124,4010.8,4010.1,0.7823]
[1760556401018,0.124,4010.8,4010.7,2.49333034]
[1760556402369,0.001,4010.9,4010.8,2.49326817]
[1760556402621,0.001,4010.9,4010.8,2.95690085]
[1760556402779,0.001,4010.9,4010.8,2.49326817]
[1760556404689,0.001,4010.9,4010.8,2.93196817]
[1760556404889,0.001,4010.9,4010.8,3.47450338]
[1760556407888,0.001,4010.9,4010.8,3.03580338]
[1760556408093,0.001,4010.9,4010.8,2.49326817]
[1760556408722,0.001,4010.9,4010.4,0.124]
[1760556408903,0.001,4010.9,4010.4,2.61750429]
[1760556409421,0.001,4010.9,4010.7,2.49331057]
[1760556409621,0.2284,4010.8,4010.4,0.124]
[1760556409946,0.3524,4010.7,4010.5,2.49344162]
[1760556410227,0.3524,4010.7,4010.5,2.49343831]
[1760556410409,0.124,4010.7,4010.5,2.49343831]
[1760556410830,0.124,4010.7,4010.4,2.49350011]
[1760556411697,0.124,4010.7,4010.5,2.49344811]
[1760556411898,0.124,4010.7,4010.4,2.4934951]
[1760556412701,0.3524,4010.7,4010.5,2.49343031]
[1760556413499,0.124,4010.7,4010.5,2.49343031]
[1760556414233,0.124,4010.7,4010.6,2.4933925]
[1760556415703,0.124,4010.7,4010.5,2.4934524]
[1760556416840,0.124,4010.7,4010.6,2.4933925]
[1760556423164,0.124,4010.7,4010.4,2.49349789]
[1760556423462,0.124,4010.7,4010.6,2.4933925]
[1760556423837,0.001,4010.9,4010.8,2.49326817]
[1760556424044,0.001,4010.9,4010.8,5.91737844]
[1760556424239,0.001,4010.9,4010.8,6.33604576]
[1760556424474,0.001,4010.9,4010.8,7.23138959]
[1760556425049,0.001,4010.9,4010.2,0.6336]
[1760556425355,0.001,4010.9,4010.8,2.49326817]
[1760556425936,0.001,4010.9,4010.8,2.93686817]
[1760556426739,0.001,4010.9,4010.8,2.49326817]
[1760556429259,0.001,4010.9,4010.8,2.93686817]
[1760556429563,0.001,4010.9,4010.8,3.81980717]
[1760556430968,0.001,4010.9,4010.8,3.37620717]
[1760556431146,0.001,4010.9,4010.8,2.49326817]
[1760556435178,0.001,4010.9,4010.6,2.49334896]
[1760556435381,0.001,4010.9,4010.7,2.49332992]
[1760556436663,0.001,4010.9,4010.5,2.49544014]
[1760556436834,0.001,4010.9,4010.8,2.49326817]
[1760556437436,0.001,4010.9,4010.8,2.93686817]
[1760556437636,0.001,4010.9,4010.8,3.03649424]
[1760556437836,0.001,4010.9,4010.8,2.49326817]
[1760556438467,0.001,4010.9,4010.8,2.93686817]
[1760556439381,0.001,4010.9,4010.8,2.49326817]
[1760556439735,0.001,4010.9,4010.5,0.4456]
[1760556439736,0.001,4010.9,4010.7,2.49330979]
[1760556440070,0.2495,4010.9,4010.7,2.49330979]
[1760556440634,0.2495,4010.9,4010.5,2.49543829]
[1760556440933,0.2495,4010.9,4010.7,2.49330473]
[1760556441436,0.2495,4010.9,4010.8,2.49326817]
[1760556442539,0.001,4010.9,4010.8,2.49326817]
[1760556443979,0.001,4010.9,4010.8,3.03713395]
[1760556444284,0.001,4010.9,4010.8,7.64391154]
[1760556446093,0.001,4010.9,4010.8,4.24473395]
[1760556454271,0.001,4010.9,4010.8,4.26966663]
[1760556455386,0.001,4010.9,4010.8,7.66884422]
[1760556455566,0.001,4010.9,4010.8,7.64391154]
[1760556456098,0.001,4010.9,4010.8,7.51991154]
[1760556456315,0.001,4010.9,4010.8,7.64391154]
[1760556460104,0.001,4010.9,4010.8,9.37191154]
[1760556460414,0.001,4011.3,4011.2,4.85461954]
[1760556460726,0.001,4011.3,4011.2,9.28537347]
[1760556460898,0.001,4011.3,4011.2,9.73537347]
[1760556461228,0.001,4011.3,4011.2,13.01055106]
[1760556461883,0.001,4011.3,4011.2,9.61137347]
[1760556464518,0.001,4011.3,4011.2,9.16137347]
[1760556465218,0.001,4011.3,4011.2,9.61137347]
[1760556467003,0.001,4011.3,4011.2,9.16137347]
[1760556469433,0.001,4011.3,4011.2,9.8373535]
[1760556471134,0.001,4011.3,4011.2,9.9613535]
[1760556471634,0.001,4011.3,4011.2,5.88619588]
[1760556472650,0.001,4011.3,4011.2,9.9613535]
[1760556473811,0.001,4011.3,4011.2,10.3970535]
[1760556476513,0.001,4011.3,4011.2,12.9470535]
[1760556476713,0.2247,4013.2,4012.8,2.49202551]
[1760556477314,0.4566,4012.9,4012.8,2.49202551]
[1760556479714,0.4566,4012.9,4011.9,6.56773752]
[1760556479715,0.4566,4012.9,4012.0,0.6336]
[1760556479915,0.2424,4012.8,4012.7,2.49208762]
[1760556480416,0.2142,4012.9,4012.8,2.49202551]
[1760556481223,0.4566,4012.9,4012.8,2.49202551]
[1760556483755,0.2142,4012.9,4012.8,2.49202551]
[1760556483961,0.48964398,4015.9,4013.9,0.6336]
[1760556484258,0.48964398,4015.9,4012.9,3.2616]
[1760556484259,0.099,4015.0,4014.7,2.4908409]
[1760556484420,0.1757,4014.8,4014.7,2.49084427]
[1760556484618,0.2755,4014.8,4014.7,2.49084427]
[1760556485952,0.2755,4014.8,4014.6,2.49090125]
[1760556486158,0.0998,4014.7,4014.6,2.49090125]
[1760556487425,0.1767,4014.8,4014.7,2.49084614]
[1760556488225,0.2765,4014.8,4014.7,2.49084614]
[1760556490271,0.2765,4014.8,4014.5,2.49096304]
[1760556490579,0.0998,4014.7,4014.6,2.49090818]
[1760556491553,0.0998,4014.7,4013.9,4.07515762]
[1760556491554,0.0998,4014.7,4014.5,2.49091823]
[1760556491865,0.0998,4014.6,4014.5,2.49091823]
[1760556493626,0.0998,4014.6,4014.2,2.49113234]
[1760556493848,0.124,4014.4,4014.2,2.49113234]
[1760556494148,0.0998,4014.3,4013.7,0.124]
[1760556494336,0.0998,4014.3,4014.2,2.49115639]
[1760556494548,0.0998,4014.3,4014.1,2.49120227]
[1760556494857,0.0998,4014.2,4014.0,2.49126121]
[1760556495059,0.0998,4014.1,4014.0,2.49126121]
[1760556495637,0.0998,4014.1,4013.7,0.124]
[1760556495845,0.124,4014.4,4013.9,2.49132941]
[1760556496044,0.0998,4014.3,4013.9,2.49132941]
[1760556496234,0.0998,4014.2,4013.7,0.124]
[1760556496443,0.0998,4014.1,4013.7,2.61545733]
[1760556496638,0.2238,4014.4,4013.8,2.49139481]
[1760556497046,0.2238,4014.4,4014.1,2.49119847]
[1760556497440,0.0998,4014.3,4014.1,2.49119847]
[1760556498176,0.0998,4014.3,4014.2,2.49115639]
[1760556498477,0.0998,4014.3,4014.1,2.49121471]
[1760556498676,2.66749204,4014.8,4014.3,2.49109433]
[1760556498677,0.1765,4014.7,4014.3,2.49109433]
[1760556498882,0.1765,4014.7,4014.4,2.49097923]
[1760556499173,0.1765,4014.7,4014.3,2.49104467]
[1760556499473,0.1765,4014.7,4013.8,0.4282]
[1760556499474,0.099,4014.6,4013.8,0.4282]
[1760556499678,0.099,4014.6,4014.5,2.49097023]
[1760556500175,0.099,4014.6,4013.6,1.0618]
[1760556500393,0.099,4014.6,4014.3,2.49103249]
[1760556500573,0.1765,4014.7,4014.4,2.49102722]
[1760556500773,0.2755,4014.7,4014.2,2.49110041]
[1760556500972,0.2755,4014.7,4014.3,2.49104717]
[1760556501179,0.1765,4014.7,4014.3,2.49104717]
[1760556501360,0.099,4014.6,4013.7,2.49142447]
[1760556501565,0.099,4014.6,4013.5,0.4325]
[1760556501762,0.099,4014.6,4012.1,2.49242471]
[1760556501763,4.17415762,4014.6,4012.0,2.71796817]
[1760556502077,6.742411,4013.6,4012.8,2.49201406]
[1760556502301,0.175,4013.7,4012.8,0.56491553]
[1760556502594,2.49167638,4013.4,4012.5,0.2325]
[1760556502889,2.59224172,4013.3,4012.4,2.49227395]
[1760556503176,0.1005,4013.3,4012.3,0.4325]
[1760556503348,0.1005,4013.3,4012.7,2.49202797]
[1760556503697,0.2211,4012.8,4012.0,0.2255]
[1760556503990,2.71313943,4012.8,4012.0,2.717966]
[1760556504291,2.71313943,4012.8,4012.1,2.49245855]
[1760556504649,0.2211,4012.8,4012.1,2.49245855]
[1760556504850,0.2211,4012.8,4012.0,0.2255]
[1760556504851,2.71314794,4012.8,4012.0,2.49250459]
[1760556505076,2.71314794,4012.8,4011.5,0.4325]
[1760556505077,2.59379832,4012.7,4011.5,0.4325]
[1760556505278,2.49214972,4012.6,4012.0,0.002]
[1760556505475,1.8297,4012.7,4012.0,0.002]
[1760556505682,4.32180059,4012.7,4012.0,0.002]
[1760556505973,0.2211,4012.8,4012.0,2.4945099]
[1760556506142,1.728,4012.7,4012.0,0.002]
[1760556506368,4.54282889,4012.8,4012.0,0.002]
[1760556506582,2.49219878,4012.6,4012.0,0.002]
[1760556507079,2.49210521,4012.7,4012.0,2.49451318]
[1760556507268,2.49208762,4012.7,4012.0,2.49451884]
[1760556507469,0.2211,4012.8,4012.0,0.002]
[1760556507784,0.1017,4012.6,4012.0,0.002]
[1760556507944,2.49228951,4012.4,4012.0,0.002]
[1760556508359,2.5940412,4012.3,4012.0,0.002]
[1760556508560,2.49241549,4012.2,4012.0,0.002]
[1760556508964,0.1017,4012.1,4012.0,0.002]
[1760556510082,0.1017,4012.6,4012.0,0.002]
[1760556510298,2.49233822,4012.3,4012.0,0.002]
[1760556510675,2.59403822,4012.3,4012.0,0.002]
[1760556511006,2.49233822,4012.3,4012.0,0.002]
[1760556511208,0.1017,4012.5,4012.0,0.002]
[1760556511721,2.49240219,4012.2,4012.0,0.002]
[1760556511859,2.59397884,4012.4,4012.0,0.002]
[1760556511860,2.4924603,4012.1,4012.0,0.002]
[1760556512270,2.5941603,4012.1,4012.0,0.002]
[1760556512664,4.3221603,4012.1,4012.0,0.002]
[1760556512893,34.3221603,4012.1,4012.0,0.002]
[1760556518459,23.7371603,4012.1,4012.0,0.002]
[1760556518659,19.2021603,4012.1,4012.0,0.002]
[1760556519093,22.6711603,4012.1,4012.0,0.002]
[1760556519295,7.2611603,4012.1,4012.0,0.002]
[1760556519590,11.3374603,4012.1,4012.0,0.002]
[1760556519958,8.845,4012.1,4012.0,0.002]
[1760556520169,1.728,4012.1,4012.0,0.002]
[1760556521102,4.2204603,4012.1,4012.0,0.002]
[1760556522183,1.728,4012.1,4012.0,0.002]
[1760556522399,1.728,4012.1,4012.0,0.4345]
[1760556522812,0.2211,4012.8,4012.0,0.4345]
[1760556523123,0.124,4012.3,4012.1,2.7249472]
[1760556523276,0.124,4012.3,4012.2,2.92489818]
[1760556523472,0.124,4012.3,4012.2,0.4325]
[1760556524083,0.124,4012.3,4012.0,0.002]
[1760556524487,0.2187,4012.9,4012.0,0.002]
[1760556524685,2.49243904,4012.2,4012.0,0.002]
[1760556525002,2.4924603,4012.1,4012.0,0.002]
[1760556525876,2.49241326,4012.2,4012.0,0.002]
[1760556526217,2.49242575,4012.2,4012.0,0.002]
[1760556526631,1.728,4012.6,4012.0,0.002]
[1760556526780,2.49221183,4012.5,4012.0,0.002]
[1760556527112,2.49236636,4012.3,4012.0,0.002]
[1760556527315,2.4924383,4012.2,4012.0,0.002]
[1760556527607,14.4387233,4012.9,4012.0,0.002]
[1760556527608,2.4924603,4012.1,4012.0,0.002]
[1760556528515,2.5965603,4012.1,4012.0,0.002]
[1760556528882,4.3245603,4012.1,4012.0,0.002]
[1760556529713,34.3245603,4012.1,4012.0,0.002]
[1760556530305,33.5595603,4012.1,4012.0,0.002]
[1760556530620,23.7125603,4012.1,4012.0,0.002]
[1760556530823,32.3795603,4012.1,4012.0,0.002]
[1760556531039,18.6064603,4012.1,4012.0,0.002]
[1760556531410,10.0454603,4012.1,4012.0,0.002]
[1760556531822,22.5474603,4012.1,4012.0,0.002]
[1760556532136,21.2184603,4012.1,4012.0,0.002]
[1760556532341,21.3225603,4012.1,4012.0,0.002]
[1760556532725,34.3245603,4012.1,4012.0,0.002]
[1760556533132,21.5005603,4012.1,4012.0,0.002]
[1760556533739,4.3245603,4012.1,4012.0,0.002]
[1760556533960,34.2204603,4012.1,4012.0,0.002]
[1760556534249,21.6055603,4012.1,4012.0,0.002]
[1760556535043,34.2204603,4012.1,4012.0,0.002]
[1760556535223,34.3245603,4012.1,4012.0,0.002]
[1760556536938,4.3245603,4012.1,4012.0,0.002]
[1760556537145,34.3245603,4012.1,4012.0,0.002]
[1760556538963,4.3245603,4012.1,4012.0,0.002]
[1760556539169,34.3245603,4012.1,4012.0,0.002]
[1760556539779,16.6494603,4012.1,4012.0,0.002]
[1760556540080,4.2204603,4012.1,4012.0,0.002]
[1760556540584,34.3245603,4012.1,4012.0,0.002]
[1760556541264,34.2204603,4012.1,4012.0,0.002]
[1760556542177,34.3245603,4012.1,4012.0,0.002]
[1760556543078,28.4625603,4012.1,4012.0,0.002]
[1760556543284,14.1764603,4012.1,4012.0,0.002]
[1760556543651,11.7474603,4012.1,4012.0,0.002]
[1760556544180,19.4714603,4012.1,4012.0,0.002]
[1760556545151,34.2204603,4012.1,4012.0,0.002]
[1760556546694,34.3245603,4012.1,4012.0,0.002]
[1760556550170,4.3245603,4012.1,4012.0,0.002]
[1760556550368,34.3245603,4012.1,4012.0,0.002]
[1760556551463,44.3245603,4012.1,4012.0,0.002]
[1760556551797,34.3245603,4012.1,4012.0,0.002]
[1760556552404,4.3245603,4012.1,4012.0,0.002]
[1760556552565,34.3245603,4012.1,4012.0,0.002]
[1760556552970,34.2204603,4012.1,4012.0,0.002]
[1760556553411,34.3245603,4012.1,4012.0,0.002]
[1760556559369,34.2204603,4012.1,4012.0,0.002]
[1760556559576,38.03352705,4012.1,4012.0,0.002]
[1760556559800,34.91730603,4012.1,4012.0,0.002]
[1760556560269,34.73566909,4012.1,4012.0,0.002]
[1760556560686,44.73566909,4012.1,4012.0,0.002]
[1760556560910,34.32042893,4012.1,4012.0,0.002]
[1760556561120,37.71825552,4012.1,4012.0,0.002]
[1760556561269,20.64742893,4012.1,4012.0,0.002]
[1760556561800,21.16842893,4012.1,4012.0,0.002]
[1760556562587,4.32042893,4012.1,4012.0,0.002]
[1760556562772,34.32042893,4012.1,4012.0,0.002]
[1760556566700,4.32042893,4012.1,4012.0,0.002]
[1760556566900,34.32042893,4012.1,4012.0,0.002]
[1760556567842,44.32042893,4012.1,4012.0,0.002]
[1760556568050,34.32042893,4012.1,4012.0,0.002]
[1760556568744,4.32042893,4012.1,4012.0,0.002]
[1760556569060,34.32042893,4012.1,4012.0,0.002]
[1760556574954,34.42452893,4012.1,4012.0,0.002]
[1760556575125,34.73566909,4012.1,4012.0,0.002]
[1760556575564,34.63156909,4012.1,4012.0,0.002]
[1760556575766,34.32042893,4012.1,4012.0,0.002]
[1760556578681,34.42452893,4012.1,4012.0,0.002]
[1760556579995,4.42452893,4012.1,4012.0,0.002]
[1760556580176,34.42452893,4012.1,4012.0,0.002]
[1760556580988,4.42452893,4012.1,4012.0,0.002]
[1760556581188,34.42452893,4012.1,4012.0,0.002]
[1760556583019,34.32042893,4012.1,4012.0,0.002]
[1760556585228,34.42452893,4012.1,4012.0,0.002]
[1760556585738,38.76709568,4012.1,4012.0,0.002]
[1760556585938,35.36926909,4012.1,4012.0,0.002]
[1760556587126,5.36926909,4012.1,4012.0,0.002]
[1760556587296,35.36926909,4012.1,4012.0,0.002]
[1760556588131,11.76926909,4012.1,4012.0,0.002]
[1760556588339,41.76926909,4012.1,4012.0,0.002]
[1760556590627,45.16709568,4012.1,4012.0,0.002]
[1760556591118,41.76926909,4012.1,4012.0,0.002]
[1760556591436,45.84856774,4012.1,4012.0,0.002]
[1760556593339,38.30006961,4011.6,4011.5,1e-08]
[1760556594044,38.86426961,4011.6,4011.5,1e-08]
[1760556594263,39.49786961,4011.6,4011.5,1e-08]
[1760556594967,39.49786961,4011.6,4011.1,0.002]
[1760556595175,38.9340425,4011.0,4010.9,1e-08]
[1760556595869,39.03404237,4011.0,4010.9,1e-08]
[1760556596770,39.13924237,4011.0,4010.9,1e-08]
[1760556597568,39.45038253,4011.0,4010.9,1e-08]
[1760556597897,39.34518253,4011.0,4010.9,1e-08]
[1760556598043,39.03404237,4011.0,4010.9,1e-08]
[1760556600571,32.59314372,4011.0,4010.9,1e-08]
[1760556600738,32.49314385,4011.0,4010.9,0.46740001]
[1760556600922,34.22114385,4011.0,4010.9,1e-08]
[1760556601132,34.32113097,4011.0,4010.9,1e-08]
[1760556602368,35.05993097,4011.0,4010.9,1e-08]
[1760556603089,34.95473097,4011.0,4010.9,1e-08]
[1760556603600,4.95473097,4011.0,4010.9,1e-08]
[1760556603899,2.49345468,4010.5,4010.3,0.002]
[1760556604212,38.30075333,4010.5,4010.3,0.002]
[1760556604352,34.22151685,4010.4,4010.3,1e-08]
[1760556604556,34.34551685,4010.4,4010.3,1e-08]
[1760556605455,34.34551685,4010.4,4010.1,0.002]
[1760556605661,6.57325081,4009.7,4009.4,0.2314]
[1760556605957,36.57325081,4009.7,4009.5,0.4694]
[1760556606266,36.57325081,4009.7,4009.6,0.4694]
[1760556606467,37.04265081,4009.7,4009.6,0.4694]
[1760556606898,37.04265081,4009.7,4009.6,0.002]
[1760556607222,37.04265081,4009.7,4009.6,0.4694]
[1760556609128,30.0,4009.7,4009.6,0.4694]
[1760556609337,10.0,4010.9,4009.6,0.4694]
[1760556609512,2.49364315,4010.2,4009.7,0.31969278]
[1760556609825,0.4694,4010.5,4009.8,0.4674]
[1760556609980,1.728,4010.3,4009.8,0.4674]
[1760556610321,2.49345361,4010.6,4010.2,0.2314]
[1760556610493,2.49347931,4010.5,4010.3,0.4674]
[1760556610694,10.4674,4010.9,4010.3,0.4674]
[1760556610896,30.0,4010.7,4010.3,0.4674]
[1760556611099,2.49333419,4010.7,4010.3,0.4674]
[1760556611298,2.4935108,4010.5,4010.3,0.4674]
[1760556611597,2.49345265,4010.6,4010.3,0.4674]
[1760556611813,2.49346785,4010.5,4010.3,0.4674]
[1760556612389,2.49351685,4010.4,4010.3,0.4674]
[1760556613203,2.49347399,4010.5,4010.3,0.4674]
[1760556613786,2.49351685,4010.4,4010.3,0.4674]
[1760556613987,0.001,4010.4,4010.3,0.4674]
[1760556616939,2.49451685,4010.4,4010.3,0.4674]
[1760556617099,0.124,4010.3,4010.2,0.2314]
[1760556617613,1.852,4010.3,4009.7,0.4674]
[1760556617931,0.124,4009.9,4009.7,0.4674]
[1760556618238,0.124,4009.9,4009.7,2.96135066]
[1760556618438,0.124,4009.9,4009.7,0.4674]
[1760556618641,0.124,4009.9,4009.6,0.002]
[1760556618642,0.124,4009.9,4009.8,0.4674]
[1760556618846,0.124,4009.9,4009.8,2.96128996]
[1760556619402,0.124,4009.9,4009.8,0.4674]
[1760556619602,0.124,4009.9,4009.8,2.96128996]
[1760556619802,0.124,4009.9,4009.8,3.50721848]
[1760556620042,0.124,4010.3,4009.9,2.49377915]
[1760556620246,0.124,4010.3,4010.2,0.2314]
[1760556620603,0.124,4010.3,4010.2,0.671]
[1760556621348,2.61757903,4010.3,4010.2,0.671]
[1760556622444,2.61757903,4010.3,4010.2,0.2314]
[1760556622645,2.49368416,4010.2,4009.8,0.4396]
[1760556622864,2.49368416,4010.2,4009.9,0.4396]
[1760556623150,0.124,4010.1,4009.9,0.4396]
[1760556623320,0.124,4010.1,4010.0,0.4396]
[1760556628741,0.001,4010.4,4010.3,2.49357903]
[1760556628908,0.001,4010.4,4010.3,0.4396]
[1760556629314,0.001,4010.4,4010.2,0.2269]
[1760556629538,0.124,4010.3,4010.2,0.2269]
[1760556630112,0.124,4010.3,4010.2,0.6665]
[1760556630510,0.001,4010.4,4010.3,3.12717903]
[1760556630709,0.001,4010.4,4010.3,3.59171482]
[1760556631145,0.001,4010.9,4010.8,2.49326817]
[1760556631354,0.001,4010.9,4010.8,3.12686817]
[1760556631520,0.34358666,4012.9,4011.2,7.20591819]
[1760556631521,0.09994415,4012.4,4011.2,7.20591819]
[1760556631731,0.12488666,4012.9,4011.2,8.17582439]
[1760556631732,1.85288666,4012.9,4011.2,8.17582439]
[1760556631932,11.728,4012.8,4011.2,8.61542439]
[1760556632257,2.49247731,4012.1,4011.2,3.90252574]
[1760556632440,1.728,4012.4,4011.2,3.90252574]
[1760556632644,2.49246643,4012.1,4011.2,3.90252574]
[1760556632933,2.49240045,4012.2,4011.2,3.90252574]
[1760556633761,2.49248,4012.1,4011.2,3.90252574]
[1760556634956,2.49237614,4012.3,4011.2,3.90252574]
[1760556635155,2.492607,4011.9,4011.2,0.4396]
[1760556635328,2.49252716,4012.0,4011.2,2.93261954]
[1760556635530,2.49244632,4012.2,4011.2,2.93261954]
[1760556635726,4.22040017,4012.2,4011.2,2.93261954]
[1760556635928,4.22027839,4012.4,4011.2,2.95754973]
[1760556636165,0.1053,4013.3,4011.2,3.56621954]
[1760556636368,2.49192175,4013.0,4011.2,3.56621954]
[1760556636575,1.728,4013.0,4011.2,3.56621954]
[1760556636864,1.728,4013.1,4011.2,3.56621954]
[1760556637066,2.49190824,4013.0,4011.2,3.56621954]
[1760556637443,2.49197692,4012.9,4011.2,3.56621954]
[1760556637759,2.70747692,4012.9,4011.2,3.56621954]
[1760556638059,1.728,4012.8,4011.2,3.56621954]
[1760556639668,0.2155,4012.9,4011.2,3.56621954]
[1760556640267,0.2155,4012.9,4011.2,4.31561721]
[1760556640431,0.2155,4012.9,4011.2,5.42710827]
[1760556640636,0.124,4012.5,4011.2,5.55110827]
[1760556643055,1.9435,4012.9,4011.2,5.55110827]